Workbook

Sheet Tabelle1
A1: Gitterabstand: 10 | C1: Länge Nadel: l=5
A3: x | C3: Winkel w | D3: Bogenmaß | E3: l/2*sin(w) | F3: Schnitt Ja/Nein | H3: Summe Schnitte | J3: rel Häuf. | L3: 1/rel Häuf.
A4: =RANDBETWEEN(0,500000)/100000 -> 0.16274 | C4: =RANDBETWEEN(0,18000)/100 -> 65.56 | D4: =C4*2/360*PI() -> 1.144237858 | E4: =2.5*SIN(D4) -> 2.275987594 | F4: =IF(A4>E4,"0","1") -> 1 | H4: =COUNTIF(F4:F20003,"1") -> 6352 | J4: =H4/20000 -> 0.3176 | L4: =1/J4 -> 3.14861461
A5: =RANDBETWEEN(0,500000)/100000 -> 2.36762 | C5: =RANDBETWEEN(0,18000)/100 -> 59.51 | D5: =C5*2/360*PI() -> 1.038645438 | E5: =2.5*SIN(D5) -> 2.154294324 | F5: =IF(A5>D5,"0","1") -> 0
A6: 0.54655 | C6: 113.46 | D6: =C6*2/360*PI() -> 1.980250569 | E6: 2.293345576 | F6: 1
A7: 2.30266 | C7: 114.44 | D7: 1.997354796 | E7: 2.275987594 | F7: 0
A8: 2.26671 | C8: 56.33 | D8: 0.9831439676 | E8: 2.08061131 | F8: 0
A9: 0.22656 | C9: 44.65 | D9: 0.779289511 | E9: 1.756935364 | F9: 1
A10: 2.87365 | C10: 111.4 | D10: 1.944296787 | E10: 2.32763954 | F10: 0
A11: 1.74984 | C11: 52.19 | D11: 0.9108873366 | E11: 1.97512007 | F11: 0
A12: 3.85521 | C12: 150.5 | D12: 2.626720524 | E12: 1.2310589 | F12: 0
A13: 4.85965 | C13: 2.32 | D13: 0.04049163865 | E13: 0.1012014368 | F13: 0
A14: 2.7326 | C14: 167.19 | D14: 2.918015976 | E14: 0.5542967248 | F14: 1
A15: 3.42079 | C15: 58.8 | D15: 1.0262536 | E15: 2.13841065 | F15: 0
A16: 4.13692 | C16: 56.98 | D16: 0.9944886078 | E16: 2.096201005 | F16: 0
A17: 3.24027 | C17: 135.98 | D17: 2.373298717 | E17: 1.737273563 | F17: 0
A18: 4.67006 | C18: 55.02 | D18: 0.9602801544 | E18: 2.048380526 | F18: 0
A19: 1.75466 | C19: 72.04 | D19: 1.257335193 | E19: 2.378180048 | F19: 0
A20: 2.64905 | C20: 33.01 | D20: 0.5761331861 | E20: 1.361963506 | F20: 0
A21: 2.71231 | C21: 72.36 | D21: 1.262920247 | E21: 2.382448354 | F21: 0
A22: 4.3589 | C22: 98.7 | D22: 1.722639972 | E22: 2.471234717 | F22: 0
A23: 2.20741 | C23: 6.64 | D23: 0.1158898623 | E23: 0.2890765686 | F23: 0
A24: 4.55399 | C24: 156.52 | D24: 2.731789345 | E24: 0.9960723257 | F24: 0
A25: 0.27605 | C25: 164.06 | D25: 2.863387171 | E25: 0.6865764349 | F25: 1
A26: 3.10637 | C26: 131.08 | D26: 2.287777584 | E26: 1.884482034 | F26: 0
A27: 1.10964 | C27: 29.13 | D27: 0.5084144111 | E27: 1.21698205 | F27: 0
A28: 3.90498 | C28: 62.03 | D28: 1.082627735 | E28: 2.207983216 | F28: 0
A29: 0.95716 | C29: 179.13 | D29: 3.126408289 | E29: 0.03795945251 | F29: 1
A30: 2.94067 | C30: 106.51 | D30: 1.858950186 | E30: 2.396925376 | F30: 0
A31: 1.90051 | C31: 141.37 | D31: 2.467371964 | E31: 1.560721786 | F31: 1
A32: 3.9018 | C32: 54.1 | D32: 0.9442231253 | E32: 2.025104101 | F32: 0
A33: 1.4726 | C33: 146.76 | D33: 2.56144521 | E33: 1.370368154 | F33: 1
A34: 4.92766 | C34: 120.8 | D34: 2.108357736 | E34: 2.147399742 | F34: 0
A35: 2.90667 | C35: 6.39 | D35: 0.1115265392 | E35: 0.2782387132 | F35: 0
A36: 4.85292 | C36: 134.56 | D36: 2.348515041 | E36: 1.781290169 | F36: 0
A37: 3.35105 | C37: 122.13 | D37: 2.131570615 | E37: 2.117108914 | F37: 0
A38: 3.44235 | C38: 38.1 | D38: 0.664970445 | E38: 1.542589688 | F38: 0
A39: 4.38163 | C39: 83.54 | D39: 1.458048057 | E39: 2.484126611 | F39: 0
A40: 1.17539 | C40: 65.65 | D40: 1.145808654 | E40: 2.277609539 | F40: 0
A41: 4.52445 | C41: 48.36 | D41: 0.8440412263 | E41: 1.868336001 | F41: 0
A42: 1.7745 | C42: 152.39 | D42: 2.659707247 | E42: 1.158626749 | F42: 1
A43: 4.75905 | C43: 50.9 | D43: 0.8883725893 | E43: 1.940116018 | F43: 0
A44: 1.97043 | C44: 115.74 | D44: 2.020044076 | E44: 2.251935127 | F44: 1
A45: 3.01346 | C45: 10.31 | D45: 0.1799434459 | E45: 0.4474348318 | F45: 0
A46: 1.56696 | C46: 60.81 | D46: 1.061334718 | E46: 2.182518029 | F46: 0
A47: 2.00128 | C47: 109.54 | D47: 1.911833663 | E47: 2.356020551 | F47: 0
A48: 2.49849 | C48: 33.89 | D48: 0.5914920835 | E48: 1.39400059 | F48: 0
A49: 1.60612 | C49: 108.27 | D49: 1.889667981 | E49: 2.373974384 | F49: 1
A50: 4.0265 | C50: 22.82 | D50: 0.3982841353 | E50: 0.9695933845 | F50: 0
A51: 0.2271 | C51: 13.45 | D51: 0.2347467844 | E51: 0.5814918056 | F51: 1
A52: 1.38286 | C52: 94.41 | D52: 1.647765347 | E52: 2.492598368 | F52: 1
A53: 0.14866 | C53: 87.06 | D53: 1.519483647 | E53: 2.496709483 | F53: 1
A54: 1.25741 | C54: 2.02 | D54: 0.03525565089 | E54: 0.08812086945 | F54: 0
A55: 3.07923 | C55: 140.85 | D55: 2.458296251 | E55: 1.578381989 | F55: 0
A56: 0.35248 | C56: 125.68 | D56: 2.193529804 | E56: 2.030717929 | F56: 1
A57: 0.5746 | C57: 91.93 | D57: 1.604481181 | E57: 2.498581797 | F57: 1
A58: 1.77123 | C58: 105.66 | D58: 1.844114888 | E58: 2.407201066 | F58: 1
A59: 4.01222 | C59: 163.28 | D59: 2.849773603 | E59: 0.7192371136 | F59: 0
A60: 2.02914 | C60: 68.96 | D60: 1.203579052 | E60: 2.333325027 | F60: 0
A61: 0.2695 | C61: 19.17 | D61: 0.3345796176 | E61: 0.8209303184 | F61: 1
A62: 4.4539 | C62: 166.34 | D62: 2.903180678 | E62: 0.5903995479 | F62: 0
A63: 1.41402 | C63: 55.98 | D63: 0.9770353153 | E63: 2.072105817 | F63: 0
A64: 1.76143 | C64: 30.78 | D64: 0.5372123438 | E64: 1.2793575 | F64: 0
A65: 1.4663 | C65: 144.72 | D65: 2.525840493 | E65: 1.443931759 | F65: 1
A66: 3.12147 | C66: 79.82 | D66: 1.393121809 | E66: 2.460643406 | F66: 0
A67: 1.73509 | C67: 4.07 | D67: 0.07103490056 | E67: 0.1774379395 | F67: 0
A68: 2.55141 | C68: 77.15 | D68: 1.346521518 | E68: 2.437389114 | F68: 0
A69: =RANDBETWEEN(0,500000)/100000 -> 3.08819 | C69: =RANDBETWEEN(0,18000)/100 -> 49.31 | D69: 0.8606218542 | E69: =2.5*SIN(D69) -> 1.895620343 | F69: =IF(A69>D69,"0","1") -> 0
A70: 4.35986 | C70: 4.58 | D70: =C70*2/360*PI() -> 0.07993607974 | E70: 0.199627445 | F70: 0
A71: 2.87045 | C71: 105.18 | D71: 1.835737307 | E71: 2.412769892 | F71: 0
A72: 0.89045 | C72: 154.67 | D72: 2.699500754 | E72: 1.069577953 | F72: 1
A73: 3.92707 | C73: 26.52 | D73: 0.4628613176 | E73: 1.116275442 | F73: 0
A74: 2.22712 | C74: 141.8 | D74: 2.474876879 | E74: 1.546020988 | F74: 1
A75: 1.71266 | C75: 95.39 | D75: 1.664869573 | E75: 2.488945936 | F75: 0
A76: 0.32524 | C76: 162.15 | D76: 2.830051382 | E76: 0.7663151952 | F76: 1
A77: 1.02006 | C77: 58.25 | D77: 1.016654289 | E77: 2.125880562 | F77: 0
A78: 3.31719 | C78: 37.28 | D78: 0.6506587451 | E78: 1.514276727 | F78: 0
A79: 1.97436 | C79: 85.14 | D79: 1.485973325 | E79: 2.491011714 | F79: 0
A80: 2.20081 | C80: 126.12 | D80: 2.201209253 | E80: 2.019460416 | F80: 1
A81: 2.74611 | C81: 79.8 | D81: 1.392772743 | E81: 2.46048902 | F81: 0
A82: 1.85965 | C82: 179.46 | D82: 3.132167876 | E82: 0.02356159608 | F82: 1
A83: 3.29333 | C83: 130.26 | D83: 2.273465884 | E83: 1.907799221 | F83: 0
A84: 0.77223 | C84: 170.5 | D84: 2.975786375 | E84: 0.4126190147 | F84: 1
A85: 1.84739 | C85: 74 | D85: 1.291543646 | E85: 2.40315424 | F85: 0
A86: 3.82452 | C86: 25.71 | D86: 0.4487241507 | E86: 1.084540864 | F86: 0
A87: 1.03156 | C87: 126.14 | D87: 2.201558318 | E87: 2.018945876 | F87: 1
A88: 0.89136 | C88: 49.61 | D88: 0.8658578419 | E88: 1.904128535 | F88: 0
A89: 4.49752 | C89: 97.69 | D89: 1.705012146 | E89: 2.477516424 | F89: 0
A90: 2.15973 | C90: 72.7 | D90: 1.268854366 | E90: 2.386901999 | F90: 0
A91: 1.97535 | C91: 179.78 | D91: 3.137752929 | E91: 0.009599287298 | F91: 1
A92: 2.85531 | C92: 47.56 | D92: 0.8300785922 | E92: 1.844961022 | F92: 0
A93: 1.9339 | C93: 133.32 | D93: 2.326872959 | E93: 1.818833294 | F93: 1
A94: 4.66166 | C94: 11.09 | D94: 0.193557014 | E94: 0.4808767393 | F94: 0
A95: 1.76093 | C95: 130.8 | D95: 2.282890662 | E95: 1.892487639 | F95: 1
A96: 0.77697 | C96: 172.35 | D96: 3.008074966 | E96: 0.3328033463 | F96: 1
A97: 1.81728 | C97: 69.7 | D97: 1.216494489 | E97: 2.344722337 | F97: 0
A98: 3.68674 | C98: 70.11 | D98: 1.223650339 | E98: 2.3508688 | F98: 0
A99: 2.97743 | C99: 114.87 | D99: 2.004859712 | E99: 2.268160859 | F99: 0
A100: 4.24712 | C100: 56.1 | D100: 0.9791297104 | E100: 2.075030713 | F100: 0
A101: 1.54001 | C101: 43.51 | D101: 0.7593927575 | E101: 1.721202917 | F101: 0
A102: 2.50998 | C102: 44.7 | D102: 0.7801621756 | E102: 1.758486757 | F102: 0
A103: 0.42469 | C103: 91.74 | D103: 1.601165056 | E103: 2.498847264 | F103: 1
A104: 4.82268 | C104: 100.3 | D104: 1.75056524 | E104: 2.459712595 | F104: 0
A105: 1.25304 | C105: 117.54 | D105: 2.051460003 | E105: 2.216720639 | F105: 1
A106: 2.12537 | C106: 118.36 | D106: 2.065771703 | E106: 2.199951017 | F106: 0
A107: 1.74395 | C107: 160.49 | D107: 2.801078917 | E107: 0.8349284403 | F107: 1
A108: 0.00938 | C108: 11.63 | D108: 0.202981792 | E108: 0.5039769949 | F108: 1
A109: 1.56338 | C109: 111.93 | D109: 1.953547032 | E109: 2.319102077 | F109: 1
A110: 1.82589 | C110: 117.26 | D110: 2.046573081 | E110: 2.222343035 | F110: 1
A111: 0.40309 | C111: 101.6 | D111: 1.77325452 | E111: 2.448938124 | F111: 1
A112: 0.73281 | C112: 157.64 | D112: 2.751337033 | E112: 0.9510620716 | F112: 1
A113: 1.82952 | C113: 64.22 | D113: 1.120850446 | E113: 2.251176602 | F113: 0
A114: 0.35082 | C114: 98.98 | D114: 1.727526894 | E114: 2.469357216 | F114: 1
A115: 3.03608 | C115: 171.83 | D115: 2.998999254 | E115: 0.3552766714 | F115: 0
A116: 1.44095 | C116: 73.24 | D116: 1.278279144 | E116: 2.393802616 | F116: 0
A117: 1.03126 | C117: 142.74 | D117: 2.491282974 | E117: 1.513582268 | F117: 1
A118: 0.25696 | C118: 132.66 | D118: 2.315353786 | E118: 1.838469652 | F118: 1
A119: 4.47765 | C119: 88.85 | D119: 1.55072504 | E119: 2.499496446 | F119: 0
A120: 0.37837 | C120: 120.19 | D120: 2.097711228 | E120: 2.160906456 | F120: 1
A121: 3.21527 | C121: 34.97 | D121: 0.6103416394 | E121: 1.432868627 | F121: 0
A122: 4.01301 | C122: 114.02 | D122: 1.990024413 | E122: 2.28350856 | F122: 0
A123: 2.68268 | C123: 169.27 | D123: 2.954318825 | E123: 0.4654527119 | F123: 1
A124: 0.27923 | C124: 138.24 | D124: 2.412743158 | E124: 1.665029669 | F124: 1
A125: 3.64291 | C125: 24.23 | D125: 0.4228932778 | E125: 1.026001407 | F125: 0
A126: 0.78858 | C126: 104.7 | D126: 1.827359727 | E126: 2.418169382 | F126: 1
A127: 1.04107 | C127: 7.05 | D127: 0.1230457123 | E127: 0.306838642 | F127: 0
A128: 2.48764 | C128: 10.2 | D128: 0.1780235837 | E128: 0.4427118508 | F128: 0
A129: 0.59118 | C129: 177.96 | D129: 3.105987937 | E129: 0.0889929864 | F129: 1
A130: 3.90218 | C130: 164.9 | D130: 2.878047937 | E130: 0.6512612716 | F130: 0
A131: 3.93756 | C131: 66.14 | D131: 1.154360767 | E131: 2.286341436 | F131: 0
A132: 1.90791 | C132: 103.17 | D132: 1.800656189 | E132: 2.434245834 | F132: 0
A133: =RANDBETWEEN(0,500000)/100000 -> 2.94727 | C133: =RANDBETWEEN(0,18000)/100 -> 82.73 | D133: 1.44391089 | E133: =2.5*SIN(D133) -> 2.479902094 | F133: =IF(A133>D133,"0","1") -> 0
A134: 0.64534 | C134: 39.64 | D134: =C134*2/360*PI() -> 0.6918485155 | E134: 1.594904385 | F134: 1
A135: 0.46514 | C135: 128.04 | D135: 2.234719574 | E135: 1.968951872 | F135: 1
A136: 3.53038 | C136: 123.7 | D136: 2.158972285 | E136: 2.079885305 | F136: 0
A137: 2.81979 | C137: 26.54 | D137: 0.4632103835 | E137: 1.117056216 | F137: 0
A138: 0.28574 | C138: 95.16 | D138: 1.660855316 | E138: 2.489868573 | F138: 1
A139: 3.19395 | C139: 164.45 | D139: 2.870193955 | E139: 0.6701980011 | F139: 0
A140: 0.7189 | C140: 29.66 | D140: 0.5176646561 | E140: 1.237130321 | F140: 0
A141: 3.28076 | C141: 108.29 | D141: 1.890017047 | E141: 2.373700663 | F141: 0
A142: 3.03383 | C142: 123.02 | D142: 2.147104046 | E142: 2.096201005 | F142: 0
A143: 2.55838 | C143: 89.77 | D143: 1.56678207 | E143: 2.499979857 | F143: 0
A144: 4.63052 | C144: 176.44 | D144: 3.079458932 | E144: 0.1552343755 | F144: 0
A145: 0.78913 | C145: 29 | D145: 0.5061454831 | E145: 1.212024051 | F145: 0
A146: 3.37752 | C146: 19.83 | D146: 0.3460987907 | E146: 0.8480762945 | F146: 0
A147: 1.24457 | C147: 75.38 | D147: 1.31562919 | E147: 2.419052807 | F147: 1
A148: 3.86021 | C148: 84.36 | D148: 1.472359757 | E148: 2.487897579 | F148: 0
A149: 1.81647 | C149: 78.99 | D149: 1.378635576 | E149: 2.453984665 | F149: 0
A150: 1.36993 | C150: 170.69 | D150: 2.9791025 | E150: 0.4044401436 | F150: 1
A151: 0.50259 | C151: 141.97 | D151: 2.477843939 | E151: 1.540184981 | F151: 1
A152: 4.28708 | C152: 92.16 | D152: 1.608495439 | E152: 2.498223682 | F152: 0
A153: 2.24193 | C153: 84.75 | D153: 1.479166541 | E153: 2.489512319 | F153: 0
A154: 2.20885 | C154: 153.37 | D154: 2.676811474 | E154: 1.120568011 | F154: 1
A155: 2.29796 | C155: 31.67 | D155: 0.5527457741 | E155: 1.312565239 | F155: 0
A156: 0.18864 | C156: 4.58 | D156: 0.07993607974 | E156: 0.199627445 | F156: 0
A157: 4.24505 | C157: 3.11 | D157: 0.05427973974 | E157: 0.1356327242 | F157: 0
A158: 2.66632 | C158: 179.62 | D158: 3.134960402 | E158: 0.01658050634 | F158: 1
A159: 0.81472 | C159: 178.05 | D159: 3.107558733 | E159: 0.08506837626 | F159: 1
A160: 1.2011 | C160: 151.19 | D160: 2.638763296 | E160: 1.204766528 | F160: 1
A161: 2.06441 | C161: 159.92 | D161: 2.79113054 | E161: 0.8583296698 | F161: 1
A162: 0.16332 | C162: 78.84 | D162: 1.376017582 | E162: 2.452726294 | F162: 1
A163: 3.14684 | C163: 123.79 | D163: 2.160543081 | E163: 2.077703871 | F163: 0
A164: 2.2342 | C164: 8.6 | D164: 0.1500983157 | E164: 0.3738383586 | F164: 0
A165: 0.22583 | C165: 150.79 | D165: 2.631781979 | E165: 1.220030013 | F165: 1
A166: 3.28143 | C166: 25.21 | D166: 0.4399975044 | E166: 1.064843018 | F166: 0
A167: 2.71844 | C167: 159.44 | D167: 2.782752959 | E167: 0.8779701747 | F167: 1
A168: 2.43143 | C168: 115.21 | D168: 2.010793831 | E168: 2.261881815 | F168: 0
A169: 2.92707 | C169: 8.63 | D169: 0.1506219144 | E169: 0.3751325864 | F169: 0
A170: 0.65735 | C170: 84.47 | D170: 1.474279619 | E170: 2.488364693 | F170: 1
A171: 1.72723 | C171: 59.1 | D171: 1.031489588 | E171: 2.145162264 | F171: 0
A172: 4.9233 | C172: 164.9 | D172: 2.878047937 | E172: 0.6512612716 | F172: 0
A173: 2.64836 | C173: 101.09 | D173: 1.764353341 | E173: 2.453315626 | F173: 0
A174: 1.71243 | C174: 77.58 | D174: 1.354026434 | E174: 2.441493155 | F174: 0
A175: 1.57583 | C175: 156.13 | D175: 2.724982561 | E175: 1.011657073 | F175: 1
A176: 3.87926 | C176: 139.17 | D176: 2.42897472 | E176: 1.63454219 | F176: 0
A177: 4.66601 | C177: 70.02 | D177: 1.222079542 | E177: 2.349529878 | F177: 0
A178: 4.53165 | C178: 143.02 | D178: 2.496169896 | E178: 1.503840525 | F178: 0
A179: 2.83699 | C179: 28.3 | D179: 0.4939281783 | E179: 1.185220523 | F179: 0
A180: 0.36133 | C180: 150.98 | D180: 2.635098105 | E180: 1.212787226 | F180: 1
A181: 3.501 | C181: 90.78 | D181: 1.584409895 | E181: 2.499768342 | F181: 0
A182: 2.56088 | C182: 171.27 | D182: 2.98922541 | E182: 0.3794459342 | F182: 1
A183: 0.18848 | C183: 78.68 | D183: 1.373225055 | E183: 2.451365502 | F183: 1
A184: 2.38938 | C184: 54.12 | D184: 0.9445721912 | E184: 2.025615684 | F184: 0
A185: 0.75715 | C185: 1.32 | D185: 0.02303834613 | E185: 0.05759077047 | F185: 0
A186: 3.54225 | C186: 78.42 | D186: 1.368687199 | E186: 2.449113448 | F186: 0
A187: 1.08022 | C187: 134.16 | D187: 2.341533724 | E187: 1.793492865 | F187: 1
A188: 4.81478 | C188: 34.07 | D188: 0.5946336762 | E188: 1.400513366 | F188: 0
A189: 3.83102 | C189: 0.15 | D189: 0.002617993878 | E189: 0.006544977219 | F189: 0
A190: 2.65482 | C190: 40.53 | D190: 0.7073819458 | E190: 1.624615267 | F190: 0
A191: 0.51535 | C191: 174.42 | D191: 3.044203281 | E191: 0.2430887348 | F191: 1
A192: 0.5387 | C192: 74.36 | D192: 1.297826832 | E192: 2.407436477 | F192: 1
A193: 1.76672 | C193: 38.97 | D193: 0.6801548095 | E193: 1.57228348 | F193: 0
A194: 0.46036 | C194: 11.87 | D194: 0.2071705822 | E194: 0.5142295276 | F194: 0
A195: 0.9469 | C195: 51.9 | D195: 0.9058258818 | E195: 1.967337555 | F195: 0
A196: 2.1509 | C196: 141.39 | D196: 2.467721029 | E196: 1.560039971 | F196: 1
A197: =RANDBETWEEN(0,500000)/100000 -> 1.23122 | C197: =RANDBETWEEN(0,18000)/100 -> 161.77 | D197: 2.823419131 | E197: =2.5*SIN(D197) -> 0.7820806997 | F197: =IF(A197>D197,"0","1") -> 1
A198: 0.81939 | C198: 34.06 | D198: =C198*2/360*PI() -> 0.5944591432 | E198: 1.400151907 | F198: 0
A199: 3.73407 | C199: 47.32 | D199: 0.825889802 | E199: 1.837878182 | F199: 0
A200: 2.58801 | C200: 176.96 | D200: 3.088534644 | E200: 0.1325827959 | F200: 1
A201: 0.93693 | C201: 0.23 | D201: 0.00401425728 | E201: 0.01003561625 | F201: 0
... 4299 more rows

Sheet Tabelle2

Sheet Tabelle3
